bitfinex/quotes_ETHUSD_20250219
["timestamp","ask_amount","ask_price","bid_price","bid_amount"]
[1739962029352,0.7931,2728.4,2728.0,3.6656]
[1739962029764,0.7931,2728.4,2727.9,3.66574]
[1739962029963,2.14306584,2728.4,2727.9,3.66574]
[1739962031183,5.80826584,2728.4,2727.9,3.66574]
[1739962031338,2.14306584,2728.4,2727.9,3.66574]
[1739962031538,2.14306584,2728.4,2727.9,7.33148]
[1739962031883,2.14306584,2728.4,2727.9,3.66574]
[1739962032085,0.89196242,2728.3,2727.9,3.66574]
[1739962034900,0.89196242,2728.3,2727.7,0.86125652]
[1739962035059,0.7931,2728.4,2728.0,7.3312]
[1739962035260,0.7931,2728.4,2728.0,3.6656]
[1739962039574,4.45825,2728.4,2727.9,3.66576]
[1739962039782,0.7931,2728.4,2728.0,3.66566]
[1739962040763,0.7931,2728.4,2728.0,3.66557]
[1739962040963,1.3305479,2728.4,2728.0,7.33117]
[1739962041161,1.3305479,2728.4,2728.0,3.66557]
[1739962041378,1.3305479,2728.4,2728.0,7.33118]
[1739962041551,1.3305479,2728.4,2728.1,3.66548]
[1739962042646,1.3305479,2728.4,2728.1,3.66555]
[1739962042846,0.7931,2728.4,2728.1,3.66555]
[1739962043480,4.21036888,2728.8,2728.2,3.66541]
[1739962043706,0.7791,2728.7,2728.4,3.66503]
[1739962045084,0.7791,2728.7,2728.6,3.66488]
[1739962045277,0.7791,2728.7,2728.5,3.66492]
[1739962045472,0.7791,2728.7,2728.5,7.32987]
[1739962045677,0.7791,2728.7,2728.2,1.049]
[1739962045678,0.7775,2729.0,2728.3,5.36]
[1739962045975,0.7775,2729.0,2728.7,3.66467]
[1739962046176,0.0992,2729.1,2728.7,3.66466]
[1739962047067,0.0992,2729.1,2728.7,7.32932]
[1739962047271,0.0992,2729.1,2728.8,3.66457]
[1739962047998,0.0992,2729.1,2728.7,3.66466]
[1739962047999,0.0992,2729.1,2728.7,3.66462]
[1739962048569,0.0992,2729.1,2728.9,3.66444]
[1739962049293,0.0992,2729.1,2728.8,0.809]
[1739962049917,0.0992,2729.1,2728.9,3.66435]
[1739962050059,0.0992,2729.1,2728.8,4.47359]
[1739962050260,0.0992,2729.1,2728.9,3.66446]
[1739962050497,0.0992,2729.1,2729.0,3.66434]
[1739962051364,0.0992,2729.1,2728.9,7.32886]
[1739962051567,0.0992,2729.1,2728.9,7.3288]
[1739962051876,0.0992,2729.1,2728.9,7.32878]
[1739962052397,0.9233,2729.1,2728.5,0.8024]
[1739962052702,0.9233,2729.1,2728.9,3.6644]
[1739962053262,0.0992,2729.1,2728.9,3.6644]
[1739962054290,0.0992,2729.1,2728.8,3.66452]
[1739962054607,0.0992,2729.1,2728.7,0.266]
[1739962054809,0.7547,2729.0,2728.7,0.266]
[1739962055309,0.7547,2729.0,2728.6,5.36]
[1739962055310,4.87087,2729.0,2728.6,5.36]
[1739962056000,3.66454,2728.9,2728.6,5.36]
[1739962056421,0.8108,2728.8,2728.6,5.36]
[1739962060116,0.8108,2728.8,2728.5,3.6649]
[1739962060416,0.7881,2728.7,2727.9,6.1169]
[1739962060623,1.288376,2728.7,2728.3,3.66517]
[1739962061123,0.7881,2728.7,2728.5,3.66488]
[1739962061325,0.7881,2728.7,2728.5,7.32981]
[1739962061524,0.7881,2728.7,2728.5,3.66488]
[1739962062527,0.7881,2728.7,2728.3,3.66517]
[1739962062687,4.45285,2728.7,2728.1,3.93144]
[1739962063009,0.7881,2728.7,2728.2,3.66542]
[1739962063169,0.7881,2728.7,2728.3,3.66526]
[1739962063370,0.7881,2728.7,2728.4,3.66514]
[1739962063771,0.7881,2728.7,2728.4,3.66515]
[1739962065226,0.7881,2728.7,2728.3,3.66526]
[1739962065522,1.61744182,2728.7,2728.3,3.66526]
[1739962065891,1.61744182,2728.7,2728.4,3.66515]
[1739962066226,1.61744182,2728.7,2728.3,3.66526]
[1739962066735,1.61744182,2728.7,2728.4,3.66514]
[1739962067117,1.61744182,2728.7,2728.3,3.66519]
[1739962068922,1.61744182,2728.7,2728.3,7.33041]
[1739962069229,1.61744182,2728.7,2728.3,3.66519]
[1739962071632,1.61744182,2728.7,2728.3,7.33039]
[1739962071839,1.61744182,2728.7,2728.3,3.66519]
[1739962073533,1.60284182,2728.7,2728.3,3.66519]
[1739962073740,0.52820618,2728.6,2728.3,3.66519]
[1739962074420,0.52820618,2728.6,2728.1,3.93142]
[1739962074739,1.90332889,2728.6,2728.1,3.93142]
[1739962074938,1.90332889,2728.6,2728.2,3.66539]
[1739962076243,1.90332889,2728.6,2728.2,3.66533]
[1739962076437,1.37512271,2728.6,2728.2,3.66533]
[1739962078707,4.49351,2728.5,2728.1,0.266]
[1739962079846,4.49351,2728.5,2728.1,3.93155]
[1739962080352,0.8285,2728.5,2728.1,3.93155]
[1739962080914,4.49355,2728.5,2728.1,3.93155]
[1739962082253,0.8285,2728.5,2728.1,3.93155]
[1739962082753,4.49354,2728.5,2728.1,3.93155]
[1739962082955,5.52981645,2728.5,2728.1,3.93155]
[1739962083151,1.86477645,2728.5,2728.1,3.93155]
[1739962084015,2.15752271,2728.4,2728.1,3.66553]
[1739962085112,2.15752271,2728.4,2728.0,3.6656]
[1739962086516,2.15752271,2728.4,2728.1,3.66551]
[1739962086862,2.15752271,2728.4,2728.0,3.6656]
[1739962087015,6.50855763,2728.4,2727.9,5.626]
[1739962087351,0.8054,2728.1,2727.7,3.66599]
[1739962087516,0.8054,2728.1,2727.7,3.93199]
[1739962087949,0.8054,2728.1,2727.8,3.66585]
[1739962088320,0.8054,2728.1,2727.8,7.33173]
[1739962088819,0.8054,2728.1,2727.8,3.66585]
[1739962090144,0.8054,2728.1,2727.8,7.33174]
[1739962090453,0.7523,2728.3,2727.9,3.66575]
[1739962090659,0.7523,2728.3,2728.0,3.66561]
[1739962092244,0.7523,2728.3,2728.0,3.6656]
[1739962094771,0.7523,2728.3,2727.8,3.66588]
[1739962094971,0.7523,2728.3,2727.9,3.66582]
[1739962096178,5.04060271,2728.2,2727.7,3.93205]
[1739962096675,1.37512271,2728.2,2727.9,3.66579]
[1739962097348,1.33155027,2728.3,2727.9,3.66579]
[1739962100434,4.99690027,2728.3,2727.8,3.66595]
[1739962100641,0.6372023,2728.2,2727.8,3.66595]
[1739962101567,0.6372023,2728.2,2727.8,3.66588]
[1739962101777,0.7523,2728.3,2727.9,3.66575]
[1739962102750,4.41758,2728.3,2727.8,3.66588]
[1739962103061,0.7523,2728.3,2727.9,3.66581]
[1739962103565,4.41761,2728.3,2727.9,3.66581]
[1739962103772,5.41839127,2728.3,2727.9,3.66581]
[1739962105108,1.75308127,2728.3,2728.0,3.66568]
[1739962105273,0.7523,2728.3,2728.0,3.66568]
[1739962108716,0.7523,2728.3,2728.1,3.66554]
[1739962110741,0.7523,2728.3,2727.9,3.66581]
[1739962110742,0.7523,2728.3,2727.9,3.66574]
[1739962111225,0.7523,2728.3,2727.9,7.33149]
[1739962111452,0.7523,2728.3,2728.1,3.66549]
[1739962111932,0.7523,2728.3,2728.0,3.66568]
[1739962112833,0.7523,2728.3,2728.1,3.66554]
[1739962117554,0.7523,2728.3,2728.0,3.66567]
[1739962117958,0.7523,2728.3,2727.9,3.66575]
[1739962118155,0.7523,2728.3,2728.0,3.66556]
[1739962118462,0.7523,2728.3,2728.1,3.66551]
[1739962120447,0.8047,2728.5,2728.1,3.66551]
[1739962121741,4.916754,2728.5,2728.0,4.48626]
[1739962122108,5.46249288,2728.5,2728.0,4.48626]
[1739962122309,1.79740288,2728.5,2728.1,3.66547]
[1739962127471,1.79740288,2728.5,2727.9,3.66572]
[1739962127472,5.46250288,2728.5,2727.9,3.66572]
[1739962127656,5.46250288,2728.5,2728.0,3.66563]
[1739962127855,0.91274429,2728.4,2728.0,3.66563]
[1739962128243,0.91274429,2728.4,2728.1,3.6655]
[1739962128645,0.8047,2728.5,2728.1,3.6655]
[1739962130298,0.8047,2728.5,2728.2,3.66539]
[1739962130442,0.8047,2728.5,2728.2,3.66535]
[1739962131556,0.8232,2728.7,2728.4,3.66506]
[1739962131791,2.19832271,2728.7,2728.2,3.66535]
[1739962132292,2.85784971,2728.7,2728.2,3.66535]
[1739962132753,3.6649,2728.6,2728.1,4.45324]
[1739962133571,1.37512271,2728.5,2728.0,3.66559]
[1739962133795,1.37512271,2728.5,2728.1,3.66555]
[1739962134287,1.37512271,2728.5,2728.0,7.33117]
[1739962134493,2.08196957,2728.5,2728.0,7.33117]
[1739962134687,0.7945,2728.4,2728.0,0.266]
[1739962134875,1.37512271,2728.3,2728.0,0.266]
[1739962135280,1.37512271,2728.3,2728.0,3.93166]
[1739962135880,1.37512271,2728.3,2728.0,3.93161]
[1739962136263,2.02927167,2728.3,2728.0,0.266]
[1739962137094,0.7888,2728.2,2728.0,0.266]
[1739962137297,0.7888,2728.2,2728.0,3.93164]
[1739962137492,0.7888,2728.2,2727.8,3.6659]
[1739962137700,0.7888,2728.2,2727.8,7.33177]
[1739962138098,0.7888,2728.2,2727.8,3.66587]
[1739962138502,0.7888,2728.0,2727.6,3.93209]
[1739962138793,1.37512271,2727.7,2727.4,0.266]
[1739962139186,1.37512271,2727.7,2727.4,3.93247]
[1739962139902,1.37512271,2727.7,2727.2,11.90963]
[1739962140060,5.04121271,2727.7,2727.2,12.17563]
[1739962140264,0.7949,2727.6,2727.2,12.17563]
[1739962141291,0.7949,2727.6,2727.2,12.17574]
[1739962141467,0.7949,2727.6,2727.2,15.84242]
[1739962141664,0.7949,2727.6,2727.2,12.17568]
[1739962142681,0.7949,2727.6,2727.3,3.66661]
[1739962143086,0.7949,2727.6,2727.2,12.17568]
[1739962143391,0.7949,2727.6,2727.3,3.66658]
[1739962144163,0.7949,2727.6,2727.2,12.17568]
[1739962144769,0.7949,2727.6,2727.2,15.84237]
[1739962145006,0.7949,2727.6,2727.2,11.90967]
[1739962146120,5.86885271,2727.3,2727.2,8.243]
[1739962147027,2.20222271,2727.3,2727.2,8.243]
[1739962147172,0.8271,2727.3,2727.2,8.243]
[1739962148010,5.86885271,2727.3,2727.2,8.243]
[1739962148180,7.19694146,2727.3,2727.2,8.243]
[1739962148500,2.15518875,2727.3,2727.2,8.243]
[1739962149222,0.8271,2727.3,2727.0,3.667]
[1739962149921,0.8276,2727.5,2727.0,3.667]
[1739962150215,0.8276,2727.5,2727.2,3.66675]
[1739962150587,0.8276,2727.5,2727.3,3.66655]
[1739962150914,0.8276,2727.7,2727.1,3.66681]
[1739962151115,0.8276,2727.7,2727.3,3.66662]
[1739962151484,5.61862827,2727.7,2727.1,3.66681]
[1739962151816,1.95246827,2727.7,2727.2,3.66665]
[1739962152022,1.95246827,2727.7,2727.3,3.66652]
[1739962152023,0.8276,2727.7,2727.3,3.66652]
[1739962152219,0.8276,2727.7,2727.3,4.49952]
[1739962152585,0.8276,2727.7,2727.3,0.833]
[1739962152800,0.7595,2727.9,2727.5,3.66628]
[1739962153322,0.7595,2727.9,2727.6,3.66622]
[1739962153486,0.7595,2727.9,2727.5,3.66628]
[1739962153687,0.7595,2727.9,2727.5,7.33257]
[1739962153933,0.7595,2727.9,2727.5,7.59857]
[1739962154226,0.7595,2727.9,2727.6,3.66611]
[1739962154519,3.0,2728.0,2727.7,3.66605]
[1739962154708,0.764,2728.1,2727.7,3.66599]
[1739962155511,4.45917,2728.3,2727.8,3.66595]
[1739962155707,1.906227,2728.3,2727.8,3.66595]
[1739962156018,0.7938,2728.3,2727.9,3.66573]
[1739962156222,0.7938,2728.3,2727.9,7.33147]
[1739962156637,0.75288219,2728.6,2728.1,3.66554]
[1739962156638,0.7938,2728.6,2728.1,3.66554]
[1739962156840,4.45869,2728.6,2728.1,3.66554]
[1739962157143,6.01771892,2728.6,2727.9,3.66573]
[1739962157341,9.68269892,2728.6,2727.9,3.66573]
[1739962157511,9.68269892,2728.6,2727.9,7.33147]
[1739962157512,6.01771892,2728.6,2727.9,7.33147]
[1739962157710,6.01771892,2728.6,2728.0,3.66561]
[1739962158021,2.35282892,2728.6,2728.1,3.66555]
[1739962158743,6.01771892,2728.6,2728.0,3.66567]
[1739962159347,0.97568457,2728.5,2727.9,3.66573]
[1739962159666,3.66517,2728.4,2727.8,3.66587]
[1739962160012,3.66517,2728.4,2727.7,4.4671]
[1739962160313,3.66517,2728.4,2727.9,3.66581]
[1739962160738,1.48642345,2728.5,2727.9,3.66581]
[1739962160939,6.01771892,2728.6,2727.9,3.66574]
[1739962161244,9.68267892,2728.6,2728.0,3.66568]
[1739962161643,6.01771892,2728.6,2728.0,3.66568]
[1739962162532,3.66513,2728.5,2727.7,4.46711]
[1739962162735,3.66509,2728.5,2727.7,4.46711]
[1739962162910,3.66509,2728.5,2727.9,3.66581]
[1739962163112,3.66509,2728.5,2727.9,7.33162]
[1739962163321,3.66509,2728.5,2727.9,3.66581]
[1739962163641,0.7845,2728.3,2727.6,5.36]
[1739962163839,3.66559,2728.1,2727.6,5.626]
[1739962164042,3.66559,2728.1,2727.6,9.29219]
[1739962164253,0.43345,2728.2,2727.6,9.29219]
[1739962164254,4.09889,2728.2,2727.6,9.29214]
[1739962166039,4.09889,2728.2,2727.6,12.95829]
[1739962166453,4.09889,2728.2,2727.6,12.95827]
[1739962166955,4.09889,2728.2,2727.6,7.59827]
[1739962168620,4.09889,2728.2,2727.6,7.59828]
[1739962168948,0.7845,2728.3,2727.9,0.793]
[1739962169157,7.47762,2728.5,2727.9,4.45881]
[1739962169333,7.47762,2728.5,2727.9,8.12455]
[1739962170357,7.47762,2728.5,2727.9,4.45874]
[1739962171776,7.47762,2728.5,2727.9,8.12449]
[1739962172072,8.87681846,2728.5,2727.9,4.45874]
[1739962172252,8.87681846,2728.5,2728.0,3.66567]
[1739962174343,8.87681846,2728.5,2727.9,4.45871]
[1739962175045,8.87681846,2728.5,2727.9,8.12446]
[1739962175387,8.87681846,2728.5,2727.9,4.45871]
[1739962175579,8.87681846,2728.5,2727.9,8.12446]
[1739962176378,8.87681846,2728.5,2727.9,4.45871]
[1739962176680,8.87681846,2728.5,2728.0,3.66568]
[1739962176879,5.21179846,2728.5,2728.1,3.66546]
[1739962178493,5.21179846,2728.5,2727.9,0.793]
[1739962178700,10.25207501,2728.5,2727.9,4.45874]
[1739962178994,10.25207501,2728.5,2727.9,0.793]
[1739962179214,6.58698501,2728.5,2728.0,3.66566]
[1739962179417,6.58698501,2728.5,2728.0,7.33127]
[1739962179786,6.58698501,2728.5,2728.0,7.33122]
[1739962179986,6.58698501,2728.5,2728.0,3.66561]
[1739962180393,6.58698501,2728.5,2728.1,3.66552]
[1739962182199,2.18778655,2728.5,2728.1,3.66552]
[1739962186042,5.85282655,2728.5,2727.9,4.45881]
[1739962186246,3.66516,2728.4,2727.9,4.45875]
[1739962186411,3.66516,2728.4,2727.9,4.45873]
[1739962186613,5.85279655,2728.5,2728.0,3.66568]
[1739962186944,3.42450066,2728.5,2728.0,3.66568]
[1739962187309,1.37518655,2728.3,2727.9,4.45873]
[1739962187514,1.37518655,2728.3,2727.9,4.4587]
[1739962187713,1.37518655,2728.3,2728.0,3.66566]
[1739962187938,3.42450066,2728.5,2728.0,3.66566]
[1739962188147,0.70893907,2728.4,2728.0,3.66566]
[1739962188442,2.18778655,2728.5,2727.9,4.4587]
[1739962188650,2.18778655,2728.5,2728.1,3.66546]
[1739962191319,0.8126,2728.5,2728.1,3.66546]
[1739962193350,0.8126,2728.5,2728.2,3.66539]
[1739962193542,0.8126,2728.5,2728.1,3.66546]
[1739962196324,0.8126,2728.5,2728.1,7.33093]
[1739962196547,1.82690322,2728.5,2728.1,3.66546]
[1739962196750,5.49192322,2728.5,2728.1,3.66546]
[1739962199170,5.49192322,2728.5,2728.0,3.66568]
[1739962199342,6.86710977,2728.5,2728.0,3.66568]
[1739962199762,0.807,2728.3,2728.0,3.66568]
[1739962200562,0.807,2728.3,2728.0,7.33126]
[1739962200729,0.807,2728.3,2728.0,3.66558]
[1739962201869,0.807,2728.3,2727.9,3.66581]
[1739962202173,0.7784,2727.8,2727.6,5.36]
[1739962202675,0.7784,2727.8,2727.5,3.93227]
[1739962203032,0.8254,2728.2,2727.6,3.66622]
[1739962203228,0.8254,2728.2,2727.7,3.66597]
[1739962203433,2.32412054,2728.2,2727.7,3.66597]
[1739962203691,5.98962054,2728.2,2727.6,4.46922]
[1739962203851,5.98962054,2728.2,2727.6,8.13536]
[1739962204054,5.98962054,2728.2,2727.7,3.66607]
[1739962204272,2.32412054,2728.2,2727.7,3.70272835]
[1739962204471,0.8254,2728.2,2727.8,3.6659]
[1739962204835,4.49085,2728.2,2727.7,3.66607]
[1739962205653,3.66563,2728.1,2727.5,3.93235]
[1739962205856,3.66563,2728.1,2727.5,7.59858]
[1739962206086,3.66563,2728.1,2727.5,3.93223]
[1739962206339,1.00828054,2728.1,2727.6,3.66619]
[1739962206640,0.8254,2728.2,2727.6,3.66619]
[1739962206837,0.8254,2728.2,2727.8,3.66595]
[1739962207151,0.8254,2728.2,2727.7,3.66601]
[1739962208243,0.8254,2728.2,2727.7,7.33203]
[1739962209140,0.8254,2728.2,2727.3,6.73518655]
[1739962209392,0.7905,2727.9,2727.5,3.66634]
[1739962209572,0.7905,2727.9,2727.6,3.6662]
[1739962210281,5.04052655,2728.3,2727.6,3.6662]
[1739962210282,3.66534,2728.3,2727.7,4.48632]
[1739962210785,3.66534,2728.3,2727.8,7.33183]
[1739962210984,3.8252,2728.4,2727.9,3.66569]
[1739962211391,0.8252,2728.4,2727.9,3.66569]
[1739962211600,4.49039,2728.4,2727.9,3.66569]
[1739962211946,4.49039,2728.4,2727.9,7.33143]
[1739962211947,0.8252,2728.4,2727.9,7.33143]
[1739962212146,0.8252,2728.4,2727.9,8.28412166]
[1739962213902,0.8252,2728.4,2728.0,3.66564]
[1739962214206,0.8252,2728.4,2728.1,3.66548]
[1739962214392,0.7645,2728.6,2728.1,3.66548]
[1739962215084,0.7645,2728.6,2728.1,3.70213143]
[1739962215389,0.7645,2728.6,2728.2,3.66539]
[1739962215967,5.81686655,2728.8,2728.2,3.66539]
[1739962216368,5.81686655,2728.8,2728.2,7.33074]
[1739962216752,5.81686655,2728.8,2728.2,3.66535]
[1739962217171,5.81686655,2728.8,2728.4,0.7881]
[1739962217372,4.58768,2729.1,2728.6,3.66476]
[1739962217766,0.9234,2729.1,2728.6,3.66476]
[1739962218068,5.03961655,2729.0,2728.4,0.7881]
[1739962218292,3.66456,2728.9,2728.4,0.7881]
[1739962218885,3.66443,2729.0,2728.4,4.45314]
[1739962219052,3.66443,2729.0,2728.5,3.66493]
[1739962220189,3.66443,2729.0,2728.4,1.233414]
[1739962220385,3.66443,2729.0,2728.4,4.898544]
[1739962220800,3.66443,2729.0,2728.4,8.563614]
[1739962220979,3.66443,2729.0,2728.4,8.563534]
[1739962221377,0.9234,2729.1,2728.4,4.898464]
[1739962221605,3.66454,2728.9,2728.4,4.898464]
[1739962222207,3.66454,2728.9,2728.4,8.563534]
[1739962222410,4.58768,2729.1,2728.4,4.898464]
[1739962222568,8.25202,2729.1,2728.4,8.563514]
[1739962222770,3.66437,2729.0,2728.4,4.898464]
[1739962223182,3.66437,2729.0,2728.4,8.563534]
[1739962223379,3.66437,2729.0,2728.4,4.898464]
[1739962224998,4.58768,2729.1,2728.4,4.898464]
[1739962225200,3.66449,2728.9,2728.4,4.898464]
[1739962225502,0.9234,2729.1,2728.4,1.233414]
[1739962225707,3.66441,2729.0,2728.4,4.898484]
[1739962226004,3.66456,2728.9,2728.4,4.898484]
[1739962226165,3.66456,2728.9,2728.4,8.563534]
[1739962226366,3.66456,2728.9,2728.4,4.898464]
[1739962226567,3.66456,2728.9,2728.4,8.563544]
[1739962226787,4.58765,2729.1,2728.5,0.8563544]
[1739962227022,4.58765,2729.1,2728.4,8.563534]
[1739962227023,3.66443,2729.0,2728.4,8.563534]
[1739962227925,3.66443,2729.0,2728.4,4.898464]
[1739962228119,4.58765,2729.1,2728.5,3.66501]
[1739962228415,1.43965164,2729.1,2728.4,0.7881]
[1739962228621,0.8297,2728.8,2728.2,6.1444]
[1739962228778,0.51625164,2728.7,2728.2,5.36]
[1739962229119,3.66502,2728.5,2728.2,5.36]
[1739962229319,3.66517,2728.4,2728.1,0.266]
[1739962229844,3.66508,2728.5,2728.1,0.266]
[1739962229982,3.66497,2728.6,2728.1,3.93148]
[1739962230320,3.66497,2728.6,2728.1,7.59697]
[1739962230822,3.66497,2728.6,2728.1,3.93148]
[1739962231125,3.66497,2728.6,2728.1,0.266]
[1739962231307,3.66496,2728.6,2728.1,0.266]
[1739962231483,3.66509,2728.5,2728.1,0.266]
[1739962231818,7.32997,2728.6,2728.1,0.266]
[1739962232025,3.66496,2728.6,2728.1,0.266]
[1739962232911,3.66496,2728.6,2728.1,3.93148]
[1739962233409,0.51625164,2728.7,2728.1,3.93148]
[1739962233610,4.18100164,2728.7,2728.1,3.93148]
[1739962233810,4.07425486,2728.8,2728.4,0.803]
[1739962233985,3.0,2728.9,2728.4,4.46805]
[1739962234516,6.66454,2728.9,2728.4,4.46805]
[1739962234725,7.786014,2728.9,2728.4,4.46805]
[1739962235019,4.121474,2728.9,2728.4,0.803]
[1739962235221,3.66495,2728.6,2728.2,0.734]
[1739962235720,4.49435,2728.7,2728.2,4.3994]
[1739962236343,0.8296,2728.7,2728.2,0.734]
[1739962236490,7.32993,2728.6,2728.2,0.734]
[1739962236789,4.53252816,2728.6,2728.2,0.734]
[1739962238205,4.53252816,2728.6,2728.1,3.6654903]
[1739962238536,4.53252816,2728.6,2727.7,9.02601]
[1739962238537,3.66535,2728.3,2727.7,9.02601]
[1739962238687,4.44995,2728.3,2727.7,9.02601]
[1739962238890,0.51625164,2728.2,2727.7,9.02601]
[1739962239941,0.7846,2728.3,2727.8,3.66594]
[1739962240841,2.74949693,2728.4,2727.9,3.66579]
[1739962241004,4.42592,2728.5,2727.9,3.66579]
[1739962241206,1.24746998,2728.4,2728.0,0.7771]
[1739962242050,1.24746998,2728.4,2728.0,4.44278]
[1739962242195,7.53252816,2728.6,2728.0,4.44278]
[1739962242631,7.53252816,2728.6,2728.1,3.66554]
[1739962246830,3.86757816,2728.6,2728.2,3.6653]
[1739962247003,3.54159693,2728.7,2728.2,0.8172]
[1739962247004,3.0,2728.7,2728.2,0.8172]
[1739962247194,6.66478,2728.7,2728.2,0.8172]
[1739962248230,6.66478,2728.7,2728.2,4.48261]
[1739962248535,6.66476,2728.7,2728.2,4.48261]
[1739962249031,3.0,2728.7,2728.2,4.48261]
[1739962249332,10.973244,2728.9,2728.3,7.33049]
[1739962249505,4.47175,2728.9,2728.3,3.66521]
[1739962250040,6.6647,2728.8,2728.3,3.66521]
[1739962250826,3.66484,2728.7,2728.2,0.8172]
[1739962252525,3.66484,2728.7,2728.2,4.48261]
[1739962253434,0.1496,2728.6,2728.2,4.48261]
[1739962257385,0.1496,2728.6,2728.2,0.8172]
[1739962259492,0.1496,2728.6,2728.2,8.14802]
[1739962259683,0.1496,2728.6,2728.2,4.48261]
[1739962260104,3.8145,2728.6,2728.2,0.8172]
[1739962261100,0.1496,2728.6,2728.2,0.8172]
[1739962261264,0.1496,2728.6,2728.2,4.48258]
[1739962261891,0.9357,2728.6,2728.2,7.33072]
[1739962262089,0.1496,2728.6,2728.4,3.66505]
[1739962262263,0.1496,2728.6,2728.4,0.7678]
[1739962262458,0.1496,2728.6,2728.3,3.66527]
[1739962262966,0.1496,2728.6,2728.4,3.66514]
[1739962263176,0.1496,2728.6,2728.3,3.6652]
[1739962267597,0.1496,2728.6,2728.4,0.788]
[1739962275717,0.1496,2728.6,2728.5,4.42891]
[1739962275880,0.1496,2728.6,2728.5,4.46556017]
[1739962276503,0.1496,2728.6,2728.5,4.42891]
[1739962277421,0.1496,2728.6,2728.5,5.80367216]
[1739962277576,0.1496,2728.6,2728.5,14.20031517]
[1739962277775,0.1496,2728.6,2728.5,15.99740968]
[1739962280618,0.1496,2728.6,2728.5,14.62264752]
[1739962282620,0.1496,2728.6,2728.0,0.7696]
[1739962282937,0.1496,2728.6,2727.9,5.36]
[1739962282938,0.7832,2728.4,2727.9,5.36]
[1739962283104,0.7832,2728.4,2727.9,9.02579]
[1739962283988,0.7832,2728.4,2728.0,3.66567]
[1739962284518,0.7832,2728.4,2728.0,3.66558]
[1739962285569,0.1496,2728.6,2728.2,4.47854]
[1739962286938,0.1496,2728.6,2728.2,4.74454]
[1739962291291,0.1496,2728.6,2728.3,0.03664719]
[1739962291488,0.1496,2728.6,2728.3,0.03664671]
[1739962291789,0.1496,2728.6,2728.3,3.66528]
[1739962292043,0.1496,2728.6,2728.2,1.0792]
[1739962292222,0.1496,2728.6,2728.2,0.266]
[1739962292223,1.34333,2728.6,2728.2,0.266]
[1739962292398,3.66542,2728.2,2728.1,5.626]
[1739962292603,3.66515,2728.4,2728.1,0.266]
[1739962292816,0.9619,2728.6,2728.1,0.266]
[1739962293020,3.66501,2728.5,2728.1,0.266]
[1739962293220,3.66522,2728.4,2728.1,0.266]
[1739962295012,3.66515,2728.4,2728.1,0.266]
[1739962295418,3.66538,2728.3,2728.1,0.266]
[1739962296052,3.66508,2728.5,2728.1,0.266]
[1739962296196,4.56711901,2728.5,2728.1,0.266]
[1739962296598,0.90203901,2728.5,2728.1,0.266]
[1739962296797,4.62687,2728.6,2728.1,0.266]
[1739962297739,4.62687,2728.6,2728.1,3.93152]
[1739962297942,3.66501,2728.5,2728.1,0.266]
[1739962299159,3.66509,2728.5,2728.1,0.266]
[1739962299450,3.66522,2728.4,2728.1,0.266]
[1739962300003,3.66522,2728.4,2727.9,3.93173]
[1739962302242,3.66509,2728.5,2727.9,3.93173]
[1739962302453,3.66525,2728.4,2727.9,3.93173]
[1739962302737,4.62687,2728.6,2727.9,0.266]
[1739962302939,3.66515,2728.4,2727.9,3.93178]
[1739962303941,3.66515,2728.4,2727.9,0.266]
[1739962304302,3.66515,2728.4,2727.9,3.9318]
[1739962305544,3.66515,2728.4,2727.9,0.266]
[1739962305730,3.66515,2728.4,2727.9,3.9318]
[1739962305924,3.66515,2728.4,2727.9,0.266]
[1739962307837,3.66515,2728.4,2727.9,3.9318]
[1739962308839,3.66515,2728.4,2727.9,0.266]
[1739962309132,3.66515,2728.4,2727.9,3.93182]
[1739962310147,0.462687,2728.5,2728.0,3.66568]
[1739962310345,0.462687,2728.5,2727.9,0.266]
[1739962310505,3.66516,2728.4,2727.9,3.93182]
[1739962311120,0.462687,2728.5,2727.9,0.266]
[1739962311325,4.127717,2728.5,2728.0,3.6656]
[1739962311754,0.462687,2728.5,2728.0,3.6656]
[1739962312183,0.462687,2728.5,2728.1,3.66552]
[1739962312637,0.462687,2728.5,2728.2,0.7682]
[1739962314378,0.462687,2728.5,2728.2,4.43359]
[1739962314547,0.9619,2728.6,2728.3,3.6652]
[1739962314856,0.1496,2728.6,2728.3,3.6652]
[1739962315655,0.1496,2728.6,2728.2,4.43359]
[1739962316576,0.1496,2728.6,2728.2,0.7682]
[1739962316732,0.1496,2728.6,2728.3,3.66526]
[1739962319779,0.1496,2728.6,2728.2,0.7682]
[1739962319992,3.81449,2728.6,2728.2,0.7682]
[1739962320286,0.1496,2728.6,2728.3,3.66527]
[1739962321087,0.1496,2728.6,2728.3,7.33046]
[1739962321260,0.1496,2728.6,2728.3,3.66519]
[1739962322488,0.1496,2728.6,2728.3,7.33039]
[1739962322694,0.1496,2728.6,2728.3,3.66518]
[1739962323193,0.1496,2728.6,2728.4,3.66514]
[1739962324492,0.1496,2728.6,2728.5,4.45531]
[1739962327495,0.1496,2728.6,2728.5,9.81531]
[1739962335195,0.1496,2728.6,2728.5,12.81531]
[1739962345010,0.1496,2728.6,2728.5,12.8222386]
[1739962346911,1.37478095,2729.8,2728.5,12.8222386]
[1739962346912,0.8297,2729.6,2729.5,3.66367]
[1739962347087,0.8297,2729.9,2729.6,3.66345]
[1739962347416,0.8297,2729.9,2729.6,3.66346]
[1739962347908,0.8297,2729.9,2729.7,3.66339]
[1739962351044,0.8297,2729.9,2729.5,3.6636]